[Event "FIDE WYCC Girls U14 2023"]
[Site "Montesilvano"]
[Date "2023.11.18"]
[Round "6.32"]
[White "Qi, Jenny"]
[Black "Kazhiakhmetova, Yerkenaz"]
[Result "*"]
[WhiteElo "1737"]
[BlackElo "1218"]
[Annotator "NA"]
[PlyCount "84"]
[EventDate "2023.11.13"]
[EventType "swiss"]
[EventCountry "ITA"]
[SourceTitle "playchess.com"]
[Source "ChessBase"]
[SourceQuality "1"]
[TimeControl "40/5400+30:1800+30"]

1. e4 {[%emt 0:00:03]} Nf6 {[%emt 0:00:17]} 2. e5 {[%emt 0:00:14]} Nd5 {[%emt 0:00:09]} 3. d4 {[%emt 0:00:29]} d6 {[%emt 0:00:32]} 4. exd6 {[%emt 0:00:41]} exd6 {[%emt 0:00:04]} 5. Nf3 {[%emt 0:00:20]} Be7 {[%emt 0:02:03]} 6. c4 {[%emt 0:05:19]} Nb6 {[%emt 0:00:03]} 7. h3 {[%emt 0:00:44]} Bf5 {[%emt 0:02:32]} 8. Be2 {[%emt 0:03:00]} O-O {[%emt 0:01:16]} 9. O-O {[%emt 0:03:12]} Nc6 {[%emt 0:03:34]} 10. d5 {[%emt 0:04:15]} Ne5 {[%emt 0:11:18]} 11. Nd4 {[%emt 0:05:47]} Bd7 {[%emt 0:03:15]} 12. b3 {[%emt 0:07:05]} c5 {[%emt 0:03:26]} 13. dxc6 {[%emt 0:05:36]} Nxc6 {[%emt 0:01:38]} 14. Nxc6 {[%emt 0:02:02]} Bxc6 {[%emt 0:00:04]} 15. Nc3 {[%emt 0:02:56]} Bf6 {[%emt 0:02:03]} 16. Bb2 {[%emt 0:03:07]} d5 {[%emt 0:03:12]} 17. cxd5 {[%emt 0:06:33]} Nxd5 {[%emt 0:02:36]} 18. Nxd5 {[%emt 0:04:24]} Bxb2 {[%emt 0:00:16]} 19. Rb1 {[%emt 0:01:41]} Qxd5 {[%emt 0:03:21]} 20. Qxd5 {[%emt 0:00:17]} Bxd5 {[%emt 0:00:02]} 21. Rxb2 {[%emt 0:00:14]} Rfe8 {[%emt 0:00:43]} 22. Bb5 {[%emt 0:02:58]} Red8 {[%emt 0:02:51]} 23. Rd2 {[%emt 0:03:25]} Be6 {[%emt 0:01:16]} 24. Rfd1 {[%emt 0:03:04]} Rxd2 {[%emt 0:01:39]} 25. Rxd2 {[%emt 0:00:15]} Rc8 {[%emt 0:00:32]} 26. Be2 {[%emt 0:05:45]} Kf8 {[%emt 0:01:40]} 27. Bf3 {[%emt 0:03:02]} Rc7 {[%emt 0:03:51]} 28. Kf1 {[%emt 0:09:23]} Ke7 {[%emt 0:00:07]} 29. Ke2 {[%emt 0:01:22]} h6 {[%emt 0:00:33]} 30. h4 {[%emt 0:01:45]} b6 {[%emt 0:02:51]} 31. g3 {[%emt 0:01:32]} Rc5 {[%emt 0:01:43]} 32. Kd1 {[%emt 0:01:39]} Rc7 {[%emt 0:01:12]} 33. Rc2 {[%emt 0:04:10]} Rxc2 {[%emt 0:06:47]} 34. Kxc2 {[%emt 0:00:09]} Kd6 {[%emt 0:00:04]} 35. Kc3 {[%emt 0:01:23]} a5 {[%emt 0:00:55]} 36. a3 {[%emt 0:02:03]} Kc5 {[%emt 0:02:20]} 37. b4+ {[%emt 0:01:09]} axb4+ {[%emt 0:00:05]} 38. axb4+ {[%emt 0:00:06]} Kd6 {[%emt 0:00:56]} 39. Kd4 {[%emt 0:01:17]} f6 {[%emt 0:00:11]} 40. Be2 {[%emt 0:00:00]} Bd5 {[%emt 0:00:00]} 41. f4 {[%emt 0:05:09]} Bb7 {[%emt 0:08:15]} 42. Bc4 {[%emt 0:02:25]} Bc6 {[%emt 0:00:21]} *

[Event "FIDE WYCC Girls U14 2023"]
[Site "Montesilvano"]
[Date "2023.11.18"]
[Round "6.33"]
[White "Zhang, Michelle"]
[Black "Michalska, Lena"]
[Result "*"]
[WhiteElo "1833"]
[BlackElo "1640"]
[Annotator "NA"]
[PlyCount "83"]
[EventDate "2023.11.13"]
[EventType "swiss"]
[EventCountry "ITA"]
[SourceTitle "playchess.com"]
[Source "ChessBase"]
[SourceQuality "1"]
[TimeControl "40/5400+30:1800+30"]

1. e4 {[%emt 0:00:06]} g6 {[%emt 0:00:06]} 2. d4 {[%emt 0:00:40]} Bg7 {[%emt 0:00:06]} 3. Nf3 {[%emt 0:00:48]} d6 {[%emt 0:00:06]} 4. Nc3 {[%emt 0:01:25]} a6 {[%emt 0:00:06]} 5. Be3 {[%emt 0:02:34]} b5 {[%emt 0:00:12]} 6. a3 {[%emt 0:01:23]} Bb7 {[%emt 0:00:10]} 7. Qd2 {[%emt 0:01:34]} Nd7 {[%emt 0:00:11]} 8. Be2 {[%emt 0:07:22]} Rc8 {[%emt 0:08:55]} 9. d5 {[%emt 0:05:51]} c6 {[%emt 0:02:12]} 10. O-O {[%emt 0:06:59]} Ngf6 {[%emt 0:09:34]} 11. Rad1 {[%emt 0:08:43]} cxd5 {[%emt 0:04:35]} 12. exd5 Nb6 {[%emt 0:00:16]} 13. Bh6 {[%emt 0:21:15]} O-O {[%emt 0:00:13]} 14. Bxg7 {[%emt 0:01:02]} Kxg7 {[%emt 0:00:09]} 15. Nd4 {[%emt 0:05:33]} Nbxd5 {[%emt 0:04:50]} 16. Nxd5 {[%emt 0:02:16]} Bxd5 {[%emt 0:00:34]} 17. Qg5 {[%emt 0:03:22]} Be4 {[%emt 0:10:16]} 18. Bd3 {[%emt 0:03:10]} Bxd3 {[%emt 0:00:07]} 19. Rxd3 {[%emt 0:00:53]} Rc5 {[%emt 0:00:28]} 20. Qd2 {[%emt 0:06:35]} Qd7 {[%emt 0:03:32]} 21. Re1 {[%emt 0:02:36]} Rfc8 {[%emt 0:00:58]} 22. Rh3 {[%emt 0:02:02]} h5 {[%emt 0:02:04]} 23. c3 {[%emt 0:02:01]} Rd5 {[%emt 0:02:14]} 24. Qe2 {[%emt 0:05:03]} Re5 {[%emt 0:00:26]} 25. Re3 {[%emt 0:00:39]} Rcc5 {[%emt 0:02:24]} 26. f4 {[%emt 0:01:20]} Rxe3 {[%emt 0:00:07]} 27. Qxe3 {[%emt 0:00:07]} e6 {[%emt 0:00:18]} 28. h3 {[%emt 0:01:56]} e5 {[%emt 0:07:24]} 29. fxe5 {[%emt 0:02:25]} Rxe5 {[%emt 0:00:52]} 30. Qf2 {[%emt 0:00:45]} Ne4 {[%emt 0:01:36]} 31. Qf4 {[%emt 0:01:42]} Nxc3 {[%emt 0:05:29]} 32. Rxe5 {[%emt 0:01:05]} dxe5 {[%emt 0:00:02]} 33. Qxe5+ {[%emt 0:00:19]} f6 {[%emt 0:00:03]} 34. Ne6+ {[%emt 0:01:49]} Kf7 {[%emt 0:00:02]} 35. Ng5+ {[%emt 0:00:48]} fxg5 {[%emt 0:00:02]} 36. Qxc3 {[%emt 0:00:09]} g4 {[%emt 0:02:56]} 37. hxg4 {[%emt 0:01:07]} Qxg4 {[%emt 0:00:24]} 38. Qc7+ {[%emt 0:00:25]} Kf6 {[%emt 0:00:08]} 39. Qd8+ {[%emt 0:00:43]} Kg7 {[%emt 0:01:15]} 40. Qe7+ {[%emt 0:00:00]} Kh6 {[%emt 0:00:00]} 41. Qf8+ {[%emt 0:03:03]} Kg5 {[%emt 0:00:32]} 42. Qe7+ {[%emt 0:01:11]} *

[Event "FIDE WYCC Girls U14 2023"]
[Site "Montesilvano"]
[Date "2023.11.18"]
[Round "6.34"]
[White "Manco, Amaliya"]
[Black "Trunz, Tamila"]
[Result "*"]
[WhiteElo "1538"]
[BlackElo "1732"]
[Annotator "NA"]
[PlyCount "50"]
[EventDate "2023.11.13"]
[EventType "swiss"]
[EventCountry "ITA"]
[SourceTitle "playchess.com"]
[Source "ChessBase"]
[SourceQuality "1"]
[TimeControl "40/5400+30:1800+30"]

1. e4 {[%emt 0:00:02]} c5 {[%emt 0:00:07]} 2. Nf3 {[%emt 0:00:07]} e6 {[%emt 0:00:03]} 3. d3 {[%emt 0:00:06]} Nc6 {[%emt 0:00:41]} 4. g3 {[%emt 0:00:13]} Nf6 {[%emt 0:04:04]} 5. Bg2 {[%emt 0:00:11]} d5 {[%emt 0:12:48]} 6. Nbd2 {[%emt 0:00:09]} g6 {[%emt 0:05:12]} 7. O-O {[%emt 0:00:50]} Bg7 {[%emt 0:00:17]} 8. Re1 {[%emt 0:02:19]} O-O {[%emt 0:01:01]} 9. c3 {[%emt 0:04:43]} b6 {[%emt 0:02:43]} 10. a3 {[%emt 0:01:30]} Bb7 {[%emt 0:02:44]} 11. Rb1 {[%emt 0:07:34]} Ba6 {[%emt 0:08:25]} 12. e5 {[%emt 0:07:48]} Nd7 {[%emt 0:00:52]} 13. d4 {[%emt 0:00:27]} cxd4 {[%emt 0:04:48]} 14. cxd4 {[%emt 0:00:14]} f6 {[%emt 0:06:01]} 15. exf6 {[%emt 0:05:03]} Bxf6 {[%emt 0:00:14]} 16. Rxe6 {[%emt 0:02:50]} Nxd4 {[%emt 0:00:33]} 17. Nxd4 {[%emt 0:02:06]} Bxd4 {[%emt 0:00:12]} 18. Bxd5 {[%emt 0:01:31]} Bxf2+ {[%emt 0:00:37]} 19. Kg2 {[%emt 0:02:28]} Nf6 {[%emt 0:09:09]} 20. Ba2 {[%emt 0:09:46]} Kg7 {[%emt 0:05:04]} 21. b4 {[%emt 0:31:23]} Bd4 {[%emt 0:08:52]} 22. h3 {[%emt 0:05:28]} Nd5 {[%emt 0:11:48]} 23. Ne4 {[%emt 0:07:28]} Nc3 {[%emt 0:02:55]} 24. Re7+ {[%emt 0:04:39]} Kh8 {[%emt 0:01:17]} 25. Rxh7+ {[%emt 0:03:02]} Kxh7 {[%emt 0:00:21]} *

[Event "FIDE WYCC Girls U14 2023"]
[Site "Montesilvano"]
[Date "2023.11.18"]
[Round "6.35"]
[White "Aswinika Mani R"]
[Black "Yu, Avery"]
[Result "1-0"]
[ECO "B98"]
[WhiteElo "1472"]
[BlackElo "1861"]
[Annotator "NA"]
[PlyCount "71"]
[EventDate "2023.11.13"]
[EventType "swiss"]
[EventCountry "ITA"]
[SourceTitle "playchess.com"]
[Source "ChessBase"]
[SourceQuality "1"]
[TimeControl "40/5400+30:1800+30"]

1. e4 {[%emt 0:00:09]} c5 {[%emt 0:00:03]} 2. Nf3 {[%emt 0:00:38]} d6 {[%emt 0:00:05]} 3. d4 {[%emt 0:00:03]} cxd4 {[%emt 0:00:03]} 4. Nxd4 {[%emt 0:00:05]} Nf6 {[%emt 0:00:06]} 5. Nc3 {[%emt 0:00:03]} a6 {[%emt 0:00:05]} 6. Bg5 {[%emt 0:00:05]} e6 {[%emt 0:00:07]} 7. f4 {[%emt 0:00:06]} Be7 {[%emt 0:00:09]} 8. Qf3 {[%emt 0:00:06]} Qc7 {[%emt 0:00:06]} 9. O-O-O {[%emt 0:00:05]} Bd7 {[%emt 0:00:04]} 10. e5 {[%emt 0:10:32]} dxe5 {[%emt 0:02:44]} 11. fxe5 {[%emt 0:00:39]} Nd5 {[%emt 0:03:34]} 12. Bxe7 {[%emt 0:05:18]} Nxe7 {[%emt 0:00:44]} 13. Qg3 {[%emt 0:11:07]} Ng6 {[%emt 0:07:41]} 14. Ne4 {[%emt 0:03:22]} Qxe5 {[%emt 0:07:30]} 15. Nd6+ {[%emt 0:01:41]} Kf8 {[%emt 0:02:11]} 16. Qa3 {[%emt 0:03:06]} Kg8 {[%emt 0:11:05]} 17. Nxb7 {[%emt 0:07:40]} h6 {[%emt 0:02:52]} 18. Kb1 {[%emt 0:08:24]} Kh7 {[%emt 0:03:58]} 19. Nf3 {[%emt 0:00:51]} Qc7 {[%emt 0:02:43]} 20. Nd6 {[%emt 0:00:36]} Bc6 {[%emt 0:03:52]} 21. Bd3 {[%emt 0:03:50]} Bxf3 {[%emt 0:01:45]} 22. gxf3 {[%emt 0:00:36]} Ra7 {[%emt 0:15:21]} 23. Nxf7 {[%emt 0:08:15]} Qxf7 {[%emt 0:02:28]} 24. Rdg1 {[%emt 0:00:25]} Qf8 {[%emt 0:08:50]} 25. Bxg6+ {[%emt 0:01:00]} Kg8 {[%emt 0:00:01]} 26. Qb3 {[%emt 0:00:43]} Re7 {[%emt 0:01:47]} 27. Rd1 {[%emt 0:01:07]} h5 {[%emt 0:07:20]} 28. Qb6 {[%emt 0:05:42]} Nd7 {[%emt 0:03:29]} 29. Rxd7 {[%emt 0:00:17]} Rxd7 {[%emt 0:00:04]} 30. Qxe6+ {[%emt 0:00:06]} Rf7 {[%emt 0:00:02]} 31. Rd1 {[%emt 0:00:13]} Rh6 {[%emt 0:00:32]} 32. Bxf7+ {[%emt 0:00:20]} Kh7 {[%emt 0:01:08]} 33. Qe4+ {[%emt 0:00:24]} Kh8 {[%emt 0:02:23]} 34. Bg6 {[%emt 0:01:18]} a5 {[%emt 0:01:51]} 35. Re1 {[%emt 0:00:14]} Qg8 {[%emt 0:04:46]} 36. Qe8 {[%emt 0:00:29]} 1-0

[Event "FIDE WYCC Girls U14 2023"]
[Site "Montesilvano"]
[Date "2023.11.20"]
[Round "7.1"]
[White "Tsetskhladze, Mariam"]
[Black "Mou, Iris"]
[Result "0-1"]
[ECO "B12"]
[WhiteElo "1911"]
[BlackElo "2086"]
[Annotator "NA RC"]
[PlyCount "112"]
[EventDate "2023.11.13"]
[EventType "swiss"]
[EventCountry "ITA"]
[SourceTitle "playchess.com"]
[Source "ChessBase"]
[SourceQuality "1"]
[TimeControl "40/5400+30:1800+30"]

1. e4 {[%emt 0:00:43]} c6 {[%emt 0:00:06]} 2. d4 {[%emt 0:00:34]} d5 {[%emt 0:00:07]} 3. e5 {[%emt 0:00:18]} Bf5 {[%emt 0:00:08]} 4. Nd2 {[%emt 0:01:13]} e6 {[%emt 0:00:08]} 5. Nb3 {[%emt 0:00:09]} a6 {[%emt 0:00:06]} 6. Nf3 {[%emt 0:02:19]} c5 {[%emt 0:00:11]} 7. dxc5 {[%emt 0:02:59]} Bxc5 {[%emt 0:00:10]} 8. Nxc5 {[%emt 0:00:31]} Qa5+ {[%emt 0:00:06]} 9. c3 {[%emt 0:00:34]} Qxc5 {[%emt 0:00:08]} 10. Be3 {[%emt 0:09:01]} Qc7 {[%emt 0:00:13]} 11. Qa4+ {[%emt 0:11:49]} Nc6 {[%emt 0:15:00]} 12. Be2 {[%emt 0:13:49]} Nge7 {[%emt 0:02:56]} 13. Bc5 {[%emt 0:05:41]} O-O {[%emt 0:11:09]} 14. Bd6 {[%emt 0:06:42]} Qd7 {[%emt 0:04:19]} 15. Qf4 {[%emt 0:07:58]} Be4 {[%emt 0:08:45]} 16. Ng5 {[%emt 0:07:15]} Bg6 {[%emt 0:04:59]} 17. Qg4 {[%emt 0:03:48]} h6 {[%emt 0:05:30]} 18. Nh3 {[%emt 0:04:22]} Bf5 {[%emt 0:05:52]} 19. Qg3 {[%emt 0:00:51]} Bxh3 {[%emt 0:08:17]} 20. Qxh3 {[%emt 0:00:39]} Rfd8 {[%emt 0:00:35]} 21. Bd3 {[%emt 0:08:34]} Nc8 {[%emt 0:02:39]} 22. Bc5 {[%emt 0:00:37]} Nxe5 {[%emt 0:03:00]} 23. Be2 {[%emt 0:00:18]} Ng6 {[%emt 0:05:38]} 24. Qg3 {[%emt 0:02:41]} e5 {[%emt 0:02:41]} 25. Be3 {[%emt 0:02:21]} Nce7 {[%emt 0:06:38]} 26. O-O {[%emt 0:02:10]} Qe6 {[%emt 0:02:43]} 27. Bd3 {[%emt 0:01:32]} e4 {[%emt 0:04:50]} 28. Be2 {[%emt 0:01:44]} Nf5 {[%emt 0:01:35]} 29. Qh3 {[%emt 0:00:56]} Qe5 {[%emt 0:02:59]} 30. Bg4 {[%emt 0:00:58]} Nge7 {[%emt 0:01:22]} 31. Rad1 {[%emt 0:00:35]} d4 {[%emt 0:01:13]} 32. Bxf5 {[%emt 0:01:37]} dxe3 {[%emt 0:01:41]} 33. Rxd8+ {[%emt 0:00:10]} Rxd8 {[%emt 0:00:04]} 34. fxe3 {[%emt 0:00:07]} Rd3 {[%emt 0:00:29]} 35. Bc8 {[%emt 0:01:27]} Qc5 {[%emt 0:00:46]} 36. Bxb7 {[%emt 0:00:45]} Rxe3 {[%emt 0:00:10]} 37. Qh4 {[%emt 0:00:38]} Rf3+ {[%emt 0:00:47]} 38. Rf2 {[%emt 0:00:09]} g5 {[%emt 0:00:08]} 39. Bxe4 {[%emt 0:00:52]} Re3 {[%emt 0:01:06]} 40. Bh7+ {[%emt 0:00:00]} Kxh7 {[%emt 0:00:00]} 41. Qd4 {[%emt 0:05:26]} Qxd4 {[%emt 0:04:19]} 42. cxd4 {[%emt 0:00:04]} Re1+ {[%emt 0:00:29]} 43. Rf1 {[%emt 0:00:03]} Rxf1+ {[%emt 0:00:04]} 44. Kxf1 {[%emt 0:00:04]} Kg6 {[%emt 0:00:48]} 45. Kf2 {[%emt 0:01:38]} Nd5 {[%emt 0:00:57]} 46. Kf3 {[%emt 0:00:34]} f5 {[%emt 0:00:13]} 47. a3 {[%emt 0:00:47]} a5 {[%emt 0:00:12]} 48. b3 {[%emt 0:00:10]} g4+ {[%emt 0:01:33]} 49. Kf2 {[%emt 0:00:33]} f4 {[%emt 0:00:06]} 50. h3 {[%emt 0:00:27]} g3+ {[%emt 0:00:39]} 51. Ke2 {[%emt 0:00:21]} Kf5 {[%emt 0:00:07]} 52. Kf3 {[%emt 0:00:08]} h5 {[%emt 0:00:28]} 53. h4 {[%emt 0:00:09]} Nc3 {[%emt 0:00:15]} 54. b4 {[%emt 0:00:12]} a4 {[%emt 0:00:14]} 55. d5 {[%emt 0:00:24]} Nxd5 {[%emt 0:00:05]} 56. b5 {[%emt 0:00:09]} Nb6 {[%emt 0:00:05]} 0-1

[Event "FIDE WYCC Girls U14 2023"]
[Site "Montesilvano"]
[Date "2023.11.20"]
[Round "7.2"]
[White "Kaliakhmet, Elnaz"]
[Black "Mgeladze, Kesaria"]
[Result "*"]
[WhiteElo "1933"]
[BlackElo "2065"]
[Annotator "NA RC"]
[PlyCount "68"]
[EventDate "2023.11.13"]
[EventType "swiss"]
[EventCountry "ITA"]
[SourceTitle "playchess.com"]
[Source "ChessBase"]
[SourceQuality "1"]
[TimeControl "40/5400+30:1800+30"]

1. d4 {[%emt 0:00:06]} Nf6 {[%emt 0:00:25]} 2. c4 {[%emt 0:00:22]} g6 {[%emt 0:00:31]} 3. g3 {[%emt 0:00:41]} Bg7 {[%emt 0:00:18]} 4. Bg2 {[%emt 0:00:17]} O-O {[%emt 0:00:09]} 5. Nc3 {[%emt 0:00:24]} d6 {[%emt 0:00:27]} 6. Nf3 {[%emt 0:01:01]} c5 {[%emt 0:01:56]} 7. dxc5 {[%emt 0:02:00]} dxc5 {[%emt 0:00:06]} 8. O-O {[%emt 0:00:03]} Nc6 {[%emt 0:00:28]} 9. Bf4 {[%emt 0:00:11]} Nh5 {[%emt 0:11:51]} 10. Be3 {[%emt 0:00:58]} b6 {[%emt 0:00:41]} 11. Qc1 {[%emt 0:00:11]} Bb7 {[%emt 0:00:13]} 12. Bh6 {[%emt 0:01:00]} Qe8 {[%emt 0:02:03]} 13. Nd5 {[%emt 0:11:16]} Rd8 {[%emt 0:04:31]} 14. Bxg7 {[%emt 0:38:08]} Nxg7 {[%emt 0:00:43]} 15. Qc3 {[%emt 0:03:20]} f6 {[%emt 0:23:20]} 16. Rad1 {[%emt 0:01:33]} Qf7 {[%emt 0:00:31]} 17. a3 {[%emt 0:04:24]} Nf5 {[%emt 0:07:12]} 18. Rfe1 {[%emt 0:06:39]} Ncd4 {[%emt 0:07:04]} 19. e3 {[%emt 0:02:10]} Nxf3+ {[%emt 0:04:19]} 20. Bxf3 {[%emt 0:00:03]} Rd6 {[%emt 0:06:25]} 21. b4 {[%emt 0:05:30]} Rfd8 {[%emt 0:03:45]} 22. bxc5 {[%emt 0:01:17]} bxc5 {[%emt 0:00:04]} 23. Rb1 {[%emt 0:00:05]} Ba6 {[%emt 0:03:56]} 24. Rec1 {[%emt 0:00:42]} Kg7 {[%emt 0:02:15]} 25. Qa5 {[%emt 0:02:56]} e6 {[%emt 0:06:04]} 26. Nc7 {[%emt 0:00:06]} Bc8 {[%emt 0:00:06]} 27. Qxc5 {[%emt 0:00:23]} R6d7 {[%emt 0:01:52]} 28. Nb5 {[%emt 0:00:26]} a6 {[%emt 0:01:13]} 29. Nc3 {[%emt 0:00:33]} Nd6 {[%emt 0:00:11]} 30. Na4 {[%emt 0:08:03]} Bb7 {[%emt 0:03:53]} 31. Bxb7 {[%emt 0:00:09]} Rxb7 {[%emt 0:00:11]} 32. Qc6 {[%emt 0:02:01]} Rbd7 {[%emt 0:03:37]} 33. Nc5 {[%emt 0:04:14]} Ra7 {[%emt 0:01:38]} 34. Rd1 {[%emt 0:01:13]} Qe7 {[%emt 0:00:49]} *

[Event "FIDE WYCC Girls U14 2023"]
[Site "Montesilvano"]
[Date "2023.11.20"]
[Round "7.3"]
[White "Nurgaliyeva, Zarina"]
[Black "Huseynova, Lala"]
[Result "1-0"]
[ECO "B52"]
[WhiteElo "2104"]
[BlackElo "1867"]
[Annotator "NA RC"]
[PlyCount "77"]
[EventDate "2023.11.13"]
[EventType "swiss"]
[EventCountry "ITA"]
[SourceTitle "playchess.com"]
[Source "ChessBase"]
[SourceQuality "1"]
[TimeControl "40/5400+30:1800+30"]

1. e4 {[%emt 0:00:08]} c5 {[%emt 0:00:43]} 2. Nf3 {[%emt 0:00:10]} d6 {[%emt 0:00:07]} 3. Bb5+ {[%emt 0:00:09]} Bd7 {[%emt 0:00:57]} 4. Bxd7+ {[%emt 0:00:23]} Qxd7 {[%emt 0:00:05]} 5. d4 {[%emt 0:00:04]} cxd4 6. Qxd4 {[%emt 0:00:34]} Nf6 {[%emt 0:02:39]} 7. O-O {[%emt 0:03:30]} g6 {[%emt 0:01:57]} 8. c4 {[%emt 0:03:01]} Nc6 {[%emt 0:00:59]} 9. Qd3 {[%emt 0:00:20]} Bg7 {[%emt 0:02:08]} 10. h3 {[%emt 0:00:13]} Rc8 {[%emt 0:08:57]} 11. Nc3 {[%emt 0:04:27]} O-O {[%emt 0:09:57]} 12. Rb1 {[%emt 0:00:56]} a6 {[%emt 0:08:27]} 13. Bg5 {[%emt 0:03:36]} Qe6 {[%emt 0:05:39]} 14. b3 {[%emt 0:04:53]} Nd7 {[%emt 0:01:54]} 15. Rfe1 {[%emt 0:13:40]} b5 {[%emt 0:08:34]} 16. Nd5 {[%emt 0:06:49]} Nde5 {[%emt 0:03:21]} 17. Nxe5 {[%emt 0:05:12]} Nxe5 {[%emt 0:03:24]} 18. Qe2 {[%emt 0:00:36]} f6 {[%emt 0:09:46]} 19. Bf4 {[%emt 0:06:22]} Nc6 {[%emt 0:07:34]} 20. cxb5 {[%emt 0:05:38]} Nd4 {[%emt 0:01:46]} 21. Qg4 {[%emt 0:05:29]} f5 {[%emt 0:05:50]} 22. Qh4 {[%emt 0:01:33]} Rfe8 {[%emt 0:05:11]} 23. Bg5 {[%emt 0:06:07]} Nxb5 {[%emt 0:07:15]} 24. Nxe7+ {[%emt 0:03:47]} Rxe7 {[%emt 0:00:06]} 25. Bxe7 {[%emt 0:00:04]} Nc3 {[%emt 0:03:38]} 26. exf5 {[%emt 0:01:14]} Qxf5 {[%emt 0:00:20]} 27. Rb2 {[%emt 0:01:57]} Re8 {[%emt 0:01:39]} 28. Rd2 {[%emt 0:02:09]} Bf6 {[%emt 0:00:55]} 29. Qc4+ {[%emt 0:00:15]} d5 {[%emt 0:00:07]} 30. Qc6 {[%emt 0:00:24]} Kf7 {[%emt 0:00:58]} 31. Qc7 {[%emt 0:05:32]} Rxe7 {[%emt 0:00:27]} 32. Rxe7+ {[%emt 0:00:20]} Bxe7 {[%emt 0:00:01]} 33. Qxc3 {[%emt 0:00:16]} Bg5 {[%emt 0:01:04]} 34. Rd3 {[%emt 0:01:01]} Bf6 {[%emt 0:00:19]} 35. Qc7+ {[%emt 0:00:22]} Kg8 {[%emt 0:00:12]} 36. Qb8+ {[%emt 0:00:34]} Kf7 {[%emt 0:00:29]} 37. Qb7+ {[%emt 0:00:07]} Ke6 {[%emt 0:00:24]} 38. Qc6+ {[%emt 0:00:36]} Ke7 {[%emt 0:00:08]} 39. Qxd5 {[%emt 0:00:16]} 1-0

[Event "FIDE WYCC Girls U14 2023"]
[Site "Montesilvano"]
[Date "2023.11.20"]
[Round "7.4"]
[White "Piddubna, Bozhena"]
[Black "Sachi Jain"]
[Result "*"]
[WhiteElo "2081"]
[BlackElo "1743"]
[Annotator "NA RC"]
[PlyCount "41"]
[EventDate "2023.11.13"]
[EventType "swiss"]
[EventCountry "ITA"]
[SourceTitle "playchess.com"]
[Source "ChessBase"]
[SourceQuality "1"]
[TimeControl "40/5400+30:1800+30"]

1. d4 {[%emt 0:00:41]} d5 {[%emt 0:00:21]} 2. Nf3 {[%emt 0:00:11]} e6 {[%emt 0:00:13]} 3. c4 {[%emt 0:00:08]} Nf6 {[%emt 0:00:37]} 4. g3 {[%emt 0:00:12]} dxc4 {[%emt 0:01:30]} 5. Bg2 {[%emt 0:00:22]} Nc6 {[%emt 0:00:15]} 6. O-O {[%emt 0:00:47]} Rb8 {[%emt 0:02:15]} 7. a4 {[%emt 0:03:34]} b6 {[%emt 0:03:37]} 8. Na3 {[%emt 0:07:13]} Bxa3 {[%emt 0:02:09]} 9. Rxa3 {[%emt 0:00:22]} h6 {[%emt 0:05:12]} 10. Qc2 {[%emt 0:01:57]} Ba6 {[%emt 0:14:28]} 11. Rd1 {[%emt 0:01:44]} O-O {[%emt 0:02:42]} 12. g4 {[%emt 0:06:52]} Nb4 {[%emt 0:11:53]} 13. Qd2 {[%emt 0:00:47]} Qe7 {[%emt 0:00:29]} 14. Ne5 {[%emt 0:05:20]} Nh7 {[%emt 0:05:40]} 15. h4 {[%emt 0:06:51]} c5 {[%emt 0:06:18]} 16. g5 {[%emt 0:10:16]} Rfd8 {[%emt 0:13:12]} 17. Qf4 {[%emt 0:05:22]} h5 {[%emt 0:04:32]} 18. Rg3 {[%emt 0:06:05]} g6 {[%emt 0:05:00]} 19. Bf3 {[%emt 0:02:26]} Nf8 {[%emt 0:07:15]} 20. Bxh5 {[%emt 0:06:18]} gxh5 {[%emt 0:01:06]} 21. g6 {[%emt 0:00:04]} *

[Event "FIDE WYCC Girls U14 2023"]
[Site "Montesilvano"]
[Date "2023.11.20"]
[Round "7.5"]
[White "Ciarletta, Iris"]
[Black "Gaszka, Zuzanna"]
[Result "*"]
[ECO "E00"]
[WhiteElo "1882"]
[BlackElo "1758"]
[Annotator "NA COMBH"]
[PlyCount "47"]
[EventDate "2023.11.13"]
[EventType "swiss"]
[EventCountry "ITA"]
[SourceTitle "playchess.com"]
[Source "ChessBase"]
[SourceQuality "1"]
[TimeControl "40/5400+30:1800+30"]

1. d4 {[%emt 0:00:26]} Nf6 {[%emt 0:00:06]} 2. c4 {[%emt 0:00:05]} e6 {[%emt 0:00:04]} 3. Nf3 {[%emt 0:00:30]} Bb4+ {[%emt 0:00:08]} 4. Bd2 {[%emt 0:00:10]} Bxd2+ {[%emt 0:00:11]} 5. Qxd2 {[%emt 0:00:07]} O-O {[%emt 0:00:24]} 6. Nc3 {[%emt 0:01:07]} d6 {[%emt 0:01:01]} 7. e3 {[%emt 0:06:10]} Nbd7 {[%emt 0:03:09]} 8. O-O-O {[%emt 0:04:25]} b6 {[%emt 0:09:19]} 9. Qc2 {[%emt 0:06:10]} Re8 {[%emt 0:02:04]} 10. Bd3 {[%emt 0:04:00]} Bb7 {[%emt 0:06:03]} 11. Rhg1 {[%emt 0:07:07]} a6 {[%emt 0:10:21]} 12. Nd2 {[%emt 0:04:10]} c5 {[%emt 0:05:32]} 13. g4 {[%emt 0:05:57]} cxd4 {[%emt 0:03:14]} 14. exd4 {[%emt 0:01:05]} Nf8 {[%emt 0:01:32]} 15. h4 {[%emt 0:02:21]} d5 {[%emt 0:02:28]} 16. Kb1 {[%emt 0:02:53]} dxc4 {[%emt 0:02:53]} 17. Nxc4 {[%emt 0:00:54]} b5 {[%emt 0:02:26]} 18. Ne5 {[%emt 0:01:43]} Nd5 {[%emt 0:03:20]} 19. Nxd5 {[%emt 0:03:28]} Bxd5 {[%emt 0:01:02]} 20. g5 {[%emt 0:02:17]} Qa5 {[%emt 0:05:46]} 21. a3 {[%emt 0:01:46]} Rec8 {[%emt 0:01:18]} 22. Qe2 {[%emt 0:02:28]} b4 {[%emt 0:02:19]} 23. Qd2 {[%emt 0:04:34]} Rab8 {[%emt 0:04:48]} 24. Rc1 {[%emt 0:03:38]} *